lending/lending_fUSD_20250808
["ID","MTS","AMOUNT","RATE_DAILY","PERIOD"]
[378003080,1754664637471,-558.87,0.00018754,2]
[378003081,1754664637482,-955.52,0.00018754,2]
[378003082,1754664637491,-366.81,0.00018754,2]
[378003083,1754664637501,-545.91,0.00018754,2]
[378003084,1754664637511,-3083.88,0.00018754,2]
[378003085,1754664637521,-240.536701,0.00018754,2]
[378003086,1754664637530,-1330.23,0.00018754,2]
[378003087,1754664637540,-536.3,0.00018754,2]
[378003088,1754664637550,-409.18,0.00018754,2]
[378003089,1754664637560,-400.0,0.00018754,2]
[378003090,1754664637572,-1117.2,0.00018754,2]
[378003091,1754664637582,-947.47,0.00018754,2]
[378003092,1754664637594,-283.593609,0.00018754,2]
[378003093,1754664637604,-649.32,0.00018754,2]
[378003094,1754664637614,-446.62,0.00018754,2]
[378003095,1754664637625,-400.0,0.00018754,2]
[378003096,1754664637634,-400.0,0.00018754,2]
[378003097,1754664637644,-506.18,0.00018754,2]
[378003098,1754664637653,-400.0,0.00018754,2]
[378003099,1754664637663,-466.67,0.00018754,2]
[378003100,1754664637672,-425.48,0.00018754,2]
[378003101,1754664637682,-797.89,0.00018754,2]
[378003102,1754664637693,-400.0,0.00018754,2]
[378003103,1754664637703,-901.37,0.00018754,2]
[378003104,1754664637713,-507.46,0.00018754,2]
[378003105,1754664637723,-761.45,0.00018754,2]
[378003106,1754664637732,-2281.0,0.00018754,2]
[378003107,1754664637742,-1818.58,0.00018754,2]
[378003108,1754664637752,-520.3,0.00018754,2]
[378003109,1754664637762,-1172.43,0.00018754,2]
[378003110,1754664637772,-400.0,0.00018754,2]
[378003111,1754664637782,-400.0,0.00018754,2]
[378003112,1754664637791,-400.0,0.00018754,2]
[378003113,1754664637801,-400.0,0.00018754,2]
[378003114,1754664637811,-3504.14,0.00018754,2]
[378003115,1754664637821,-607.36,0.00018754,2]
[378003116,1754664637831,-956.07,0.00018754,2]
[378003117,1754664637840,-1261.18,0.00018754,2]
[378003118,1754664637853,-771.3,0.00018754,2]
[378003119,1754664637862,-704.54,0.00018754,2]
[378003120,1754664637872,-1082.7,0.00018754,2]
[378003121,1754664637882,-672.14,0.00018754,2]
[378003122,1754664637891,-400.0,0.00018754,2]
[378003123,1754664637900,-6865.93,0.00018754,2]
[378003124,1754664637911,-5370.27,0.00018754,2]
[378003125,1754664637920,-400.0,0.00018754,2]
[378003126,1754664637930,-674.83,0.00018754,2]
[378003127,1754664637939,-1046.76,0.00018754,2]
[378003128,1754664637949,-400.0,0.00018754,2]
[378003129,1754664637962,-454.47,0.00018754,2]
[378003130,1754664637971,-400.0,0.00018754,2]
[378003131,1754664637981,-1382.86,0.00018754,2]
[378003132,1754664637991,-1693.1,0.00018754,2]
[378003133,1754664638000,-400.0,0.00018754,2]
[378003134,1754664638010,-400.0,0.00018754,2]
[378003135,1754664638020,-400.0,0.00018754,2]
[378003136,1754664638030,-1149.46,0.00018754,2]
[378003137,1754664638040,-682.84,0.00018754,2]
[378003138,1754664638049,-471.54,0.00018754,2]
[378003139,1754664638059,-400.0,0.00018754,2]
[378003140,1754664638068,-1414.6,0.00018754,2]
[378003141,1754664638077,-593.23,0.00018754,2]
[378003142,1754664638087,-400.0,0.00018754,2]
[378003143,1754664638096,-1842.34,0.00018754,2]
[378003144,1754664638106,-594.65,0.00018754,2]
[378003145,1754664638115,-660.41,0.00018754,2]
[378003146,1754664638125,-718.25,0.00018754,2]
[378003147,1754664638134,-400.0,0.00018754,2]
[378003149,1754664638144,-2935.73,0.00018754,2]
[378003151,1754664638153,-400.0,0.00018754,2]
[378003153,1754664638162,-1167.65,0.00018754,2]
[378003155,1754664638171,-723.73,0.00018754,2]
[378003157,1754664638180,-400.0,0.00018754,2]
[378003158,1754664638190,-400.0,0.00018754,2]
[378003160,1754664638199,-1303.57,0.00018754,2]
[378003162,1754664638210,-400.0,0.00018754,2]
[378003164,1754664638219,-988.78,0.00018754,2]
[378003166,1754664638229,-400.0,0.00018754,2]
[378003167,1754664638239,-1353.28,0.00018754,2]
[378003170,1754664638249,-500.0,0.00018754,2]
[378003172,1754664638259,-444.73,0.00018754,2]
[378003173,1754664638272,-400.0,0.00018754,2]
[378003175,1754664638283,-539.72,0.00018754,2]
[378003177,1754664638292,-642.17,0.00018754,2]
[378003179,1754664638301,-400.0,0.00018754,2]
[378003181,1754664638312,-638.08,0.00018754,2]
[378003183,1754664638321,-1654.61,0.00018754,2]
[378003185,1754664638331,-1388.27,0.00018754,2]
[378003186,1754664638340,-1696.84,0.00018754,2]
[378003188,1754664638350,-941.92,0.00018754,2]
[378003190,1754664638361,-400.0,0.00018754,2]
[378003193,1754664638370,-500.0,0.00018754,2]
[378003194,1754664638380,-400.0,0.00018754,2]
[378003196,1754664638390,-948.97,0.00018754,2]
[378003198,1754664638399,-469.76,0.00018754,2]
[378003201,1754664638409,-3885.14,0.00018754,2]
[378003203,1754664638419,-400.0,0.00018754,2]
[378003204,1754664638428,-471.58,0.00018754,2]
[378003207,1754664638438,-1062.27,0.00018754,2]
[378003208,1754664638447,-514.44,0.00018754,2]
[378003210,1754664638458,-400.0,0.00018754,2]
[378003212,1754664638467,-599.37,0.00018754,2]
[378003214,1754664638476,-1501.78,0.00018754,2]
[378003216,1754664638486,-401.18248129,0.00018755,2]
[378003218,1754664638495,-400.0,0.00018755,2]
[378003220,1754664638505,-400.20584407,0.00018755,2]
[378003222,1754664638514,-168.92821111,0.00018755,2]
[378003224,1754664638524,-400.0,0.00018755,2]
[378003226,1754664638537,-400.0,0.00018755,2]
[378003228,1754664638546,-400.0,0.00018755,2]
[378003230,1754664638555,-431.72,0.00018755,2]
[378003232,1754664638564,-411.81,0.00018755,2]
[378003234,1754664638573,-400.0,0.00018755,2]
[378003235,1754664638583,-400.0,0.00018755,2]
[378003236,1754664638593,-400.0,0.00018755,2]
[378003237,1754664638602,-787.82,0.00018755,2]
[378003238,1754664638614,-400.0,0.00018755,2]
[378003239,1754664638624,-400.0,0.00018755,2]
[378003240,1754664638634,-551.94,0.00018755,2]
[378003241,1754664638644,-400.0,0.00018755,2]
[378003242,1754664638653,-424.61,0.00018755,2]
[378003243,1754664638731,-402.89902592,0.00018755,2]
[378003244,1754664638740,-400.0,0.00018755,2]
[378003245,1754664638751,-402.7065861,0.00018755,2]
[378003246,1754664638761,-596.17,0.00018755,2]
[378003247,1754664638770,-402.03956326,0.00018755,2]
[378003248,1754664638779,-403.07220865,0.00018755,2]
[378003249,1754664638788,-400.0,0.00018755,2]
[378003250,1754664638798,-402.80308364,0.00018755,2]
[378003251,1754664638807,-534.44,0.00018755,2]
[378003252,1754664638816,-400.985432,0.00018755,2]
[378003253,1754664638825,-400.0,0.00018755,2]
[378003254,1754664638835,-400.0,0.00018755,2]
[378003255,1754664638845,-400.0,0.00018755,2]
[378003256,1754664638854,-537.63,0.00018755,2]
[378003257,1754664638863,-400.0,0.00018755,2]
[378003258,1754664638872,-456.25002635,0.00018755,2]
[378003259,1754664638881,-400.0,0.00018755,2]
[378003260,1754664638890,-400.0,0.00018755,2]
[378003261,1754664638900,-400.0,0.00018755,2]
[378003262,1754664638909,-400.0,0.00018755,2]
[378003263,1754664638919,-871.95,0.00018755,2]
[378003264,1754664638928,-400.0,0.00018755,2]
[378003265,1754664638937,-400.0,0.00018755,2]
[378003266,1754664638947,-767.85,0.00018755,2]
[378003267,1754664638957,-400.0,0.00018755,2]
[378003268,1754664638966,-531.54,0.00018755,2]
[378003269,1754664638976,-1009.66,0.00018755,2]
[378003270,1754664638985,-400.0,0.00018755,2]
[378003271,1754664638995,-554.9,0.00018755,2]
[378003272,1754664639004,-400.0,0.00018755,2]
[378003273,1754664639014,-400.0,0.00018755,2]
[378003274,1754664639023,-400.0,0.00018755,2]
[378003275,1754664639033,-400.0,0.00018755,2]
[378003276,1754664639042,-540.62,0.00018755,2]
[378003277,1754664639051,-439.55,0.00018755,2]
[378003278,1754664639061,-400.0,0.00018755,2]
[378003279,1754664639074,-584.42,0.00018755,2]
[378003280,1754664639083,-687.46,0.00018755,2]
[378003281,1754664639093,-549.89,0.00018755,2]
[378003282,1754664639103,-1145.16,0.00018755,2]
[378003283,1754664639112,-491.09,0.00018755,2]
[378003284,1754664639122,-522.03,0.00018755,2]
[378003285,1754664639131,-400.0,0.00018755,2]
[378003286,1754664639141,-400.0,0.00018755,2]
[378003287,1754664639150,-873.47,0.00018755,2]
[378003288,1754664639159,-400.0,0.00018755,2]
[378003289,1754664639168,-665.91,0.00018755,2]
[378003290,1754664639177,-400.0,0.00018755,2]
[378003291,1754664639187,-745.93,0.00018755,2]
[378003292,1754664639196,-400.0,0.00018755,2]
[378003293,1754664639207,-400.0,0.00018755,2]
[378003294,1754664639216,-496.78,0.00018755,2]
[378003295,1754664639225,-1050.35,0.00018755,2]
[378003296,1754664639236,-630.11,0.00018755,2]
[378003297,1754664639245,-608.15,0.00018755,2]
[378003298,1754664639254,-400.0,0.00018755,2]
[378003299,1754664639265,-664.91,0.00018755,2]
[378003300,1754664639276,-282.82,0.00018755,2]
[378003301,1754664639285,-400.0,0.00018755,2]
[378003302,1754664639294,-691.38,0.00018755,2]
[378003303,1754664639303,-5132.44,0.00018755,2]
[378003304,1754664639312,-400.0,0.00018755,2]
[378003305,1754664639322,-541.35,0.00018755,2]
[378003306,1754664639332,-400.0,0.00018755,2]
[378003307,1754664639342,-232.57888906,0.00018755,2]
[378003308,1754664639352,-654.07,0.00018755,2]
[378003309,1754664639361,-401.01207241,0.00018755,2]
[378003310,1754664639370,-4647.84,0.00018755,2]
[378003311,1754664639379,-714.03,0.00018755,2]
[378003312,1754664639388,-242.97857079,0.00018755,2]
[378003313,1754664639397,-500.0,0.00018755,2]
[378003314,1754664639407,-464.92,0.00018755,2]
[378003315,1754664639416,-400.64779374,0.00018755,2]
[378003316,1754664639425,-1175.25,0.00018755,2]
[378003317,1754664639436,-400.69041212,0.00018755,2]
[378003318,1754664639445,-400.88330054,0.00018755,2]
[378003319,1754664639454,-459.79,0.00018755,2]
[378003320,1754664639465,-400.0,0.00018755,2]
[378003321,1754664639474,-400.0,0.00018755,2]
[378003322,1754664639483,-1106.12,0.00018755,2]
[378003323,1754664639493,-400.0,0.00018755,2]
[378003324,1754664639502,-490.08,0.00018755,2]
[378003325,1754664639512,-1336.75,0.00018755,2]
[378003326,1754664639522,-400.0,0.00018755,2]
[378003327,1754664639532,-400.75982605,0.00018755,2]
[378003328,1754664639541,-1044.56,0.00018755,2]
[378003329,1754664639550,-168.52678778,0.00018755,2]
[378003330,1754664639560,-400.0,0.00018755,2]
[378003331,1754664639569,-1002.46,0.00018755,2]
[378003332,1754664639579,-400.0,0.00018755,2]
[378003333,1754664639588,-1157.48,0.00018755,2]
[378003334,1754664639598,-400.32923304,0.00018755,2]
[378003335,1754664639607,-5258.46,0.00018755,2]
[378003336,1754664639617,-451.94,0.00018755,2]
[378003337,1754664639626,-2242.66,0.00018755,2]
[378003338,1754664639636,-1391.44,0.00018755,2]
[378003340,1754664639645,-400.0,0.00018755,2]
[378003341,1754664639655,-1664.48,0.00018755,2]
[378003342,1754664639664,-553.9,0.00018755,2]
[378003343,1754664639673,-401.03,0.00018755,2]
[378003344,1754664639682,-526.02,0.00018755,2]
[378003345,1754664639692,-7405.69,0.00018755,2]
[378003347,1754664639702,-400.0,0.00018755,2]
[378003349,1754664639713,-1105.39,0.00018755,2]
[378003351,1754664639722,-476.41,0.00018755,2]
[378003352,1754664639731,-400.0,0.00018755,2]
[378003353,1754664639740,-517.51,0.00018755,2]
[378003354,1754664639749,-439.15,0.00018755,2]
[378003355,1754664639759,-536.49,0.00018755,2]
[378003356,1754664639770,-400.0,0.00018755,2]
[378003357,1754664639780,-676.67,0.00018755,2]
[378003358,1754664639789,-3953.69,0.00018755,2]
[378003359,1754664639799,-526.2,0.00018755,2]
[378003360,1754664639809,-600.12,0.00018755,2]
[378003361,1754664639819,-1318.48,0.00018755,2]
[378003362,1754664639830,-496.38,0.00018755,2]
[378003363,1754664639840,-1421.94,0.00018755,2]
[378003364,1754664639849,-400.0,0.00018755,2]
[378003365,1754664639858,-439.21122139,0.00018755,2]
[378003366,1754664639868,-400.0,0.00018755,2]
[378003367,1754664639877,-834.8,0.00018755,2]
[378003368,1754664639887,-779.76,0.00018755,2]
[378003369,1754664639896,-4172.91,0.00018755,2]
[378003370,1754664639905,-3790.32,0.00018755,2]
[378003371,1754664639916,-1332.79,0.00018755,2]
[378003372,1754664639925,-400.0,0.00018755,2]
[378003373,1754664639935,-1640.1,0.00018755,2]
[378003374,1754664639945,-551.62,0.00018755,2]
[378003375,1754664639954,-724.57,0.00018755,2]
[378003376,1754664639964,-3935.24,0.00018755,2]
[378003377,1754664639973,-462.21,0.00018755,2]
[378003378,1754664639983,-17540.45,0.00018755,2]
[378003379,1754664639992,-3249.72,0.00018755,2]
[378003380,1754664640001,-842.33,0.00018755,2]
[378003381,1754664640011,-400.0,0.00018755,2]
[378003382,1754664640020,-1959.08,0.00018755,2]
[378003383,1754664640032,-622.87,0.00018755,2]
[378003384,1754664640042,-4843.81,0.00018755,2]
[378003385,1754664640051,-500.0,0.00018756,2]
[378003386,1754664640060,-400.0,0.00018756,2]
[378003387,1754664640070,-400.0,0.00018756,2]
[378003388,1754664640080,-842.33,0.00018756,2]
[378003389,1754664640090,-400.0,0.00018756,2]
[378003390,1754664640100,-1005.7,0.00018756,2]
[378003391,1754664640110,-400.0,0.00018756,2]
[378003392,1754664640119,-2055.87,0.00018756,2]
[378003393,1754664640129,-400.0,0.00018756,2]
[378003394,1754664640139,-2965.79,0.00018756,2]
[378003395,1754664640148,-4203.17,0.00018756,2]
[378003396,1754664640157,-1000.0,0.00018756,2]
[378003397,1754664640167,-949.62,0.00018756,2]
[378003398,1754664640176,-2703.27,0.00018756,2]
[378003399,1754664640186,-485.50901068,0.00018756,2]
[378003400,1754664640195,-2319.58,0.00018756,2]
[378003401,1754664640205,-10547.09,0.00018756,2]
[378003402,1754664640214,-1156.73,0.00018756,2]
[378003403,1754664640224,-1543.88,0.00018756,2]
[378003404,1754664640241,-2482.56,0.00018756,2]
[378003405,1754664640250,-1502.73,0.00018756,2]
[378003406,1754664640260,-1247.36,0.00018756,2]
[378003407,1754664640276,-3941.24,0.00018756,2]
[378003408,1754664640291,-1477.96,0.00018756,2]
[378003409,1754664640300,-621.69,0.00018756,2]
[378003410,1754664640310,-4859.29,0.00018756,2]
[378003411,1754664640320,-400.0,0.00018756,2]
[378003412,1754664640330,-2297.56,0.00018756,2]
[378003413,1754664640340,-2543.08,0.00018756,2]
[378003414,1754664640350,-1305.9,0.00018756,2]
[378003415,1754664640359,-1743.87,0.00018756,2]
[378003416,1754664640369,-1520.46,0.00018756,2]
[378003417,1754664640378,-474.21,0.00018756,2]
[378003419,1754664640387,-3896.92,0.00018756,2]
[378003420,1754664640395,-1443.13,0.00018756,2]
[378003422,1754664640405,-150.0,0.00018761,2]
[378003424,1754664640415,-500.0,0.00018761,2]
[378003426,1754664640426,-500.0,0.00018761,2]
[378003427,1754664640435,-2456.27777075,0.00018763,2]
[378003429,1754664640444,-500.0,0.00018773,2]
[378003431,1754664640453,-500.0,0.00018773,2]
[378003433,1754664640464,-500.0,0.00018773,2]
[378003435,1754664640473,-500.0,0.00018773,2]
[378003436,1754664640482,-500.0,0.00018773,2]
[378003438,1754664640491,-502.23686703,0.00018773,2]
[378003440,1754664640500,-159.03229537,0.00018773,2]
[378003442,1754664640509,-565.49739749,0.00018773,2]
[378003443,1754664640519,-500.0,0.00018773,2]
[378003444,1754664640528,-502.79524056,0.00018773,2]
[378003445,1754664640538,-2456.27777075,0.00018791,2]
[378003446,1754664640548,-5798.19178837,0.00018798,2]
[378003447,1754664640558,-500.0,0.00018799,2]
[378003448,1754664640567,-2482.56,0.00018799,2]
[378003449,1754664640576,-898.15218,0.0001881,2]
[378003450,1754664640586,-500.0,0.00018817,2]
[378003451,1754664640595,-2456.27777075,0.00018818,2]
[378003452,1754664640605,-2456.27777075,0.00018845,2]
[378003453,1754664640614,-1939.98198646,0.00018853,2]
[378003454,1754664640623,-211.62674257,0.00018864,2]
[378003455,1754664640633,-160.0,0.00018864,2]
[378003456,1754664640642,-457.64618948,0.00018864,2]
[378003457,1754664640651,-842.44706758,0.00018864,2]
[378003458,1754664640661,-2456.27777075,0.00018873,2]
[378003459,1754664640670,-500.0,0.00018877,2]
[378003460,1754664640679,-2482.56,0.00018877,2]
[378003461,1754664640688,-400.0,0.00018878,2]
[378003462,1754664640697,-476.89,0.00018878,2]
[378003463,1754664640707,-448.82,0.00018878,2]
[378003464,1754664640716,-400.0,0.00018878,2]
[378003465,1754664640725,-400.0,0.00018878,2]
[378003466,1754664640734,-400.0,0.00018878,2]
[378003467,1754664640744,-400.0,0.00018878,2]
[378003468,1754664640754,-542.68,0.00018878,2]
[378003469,1754664640763,-444.1,0.00018878,2]
[378003470,1754664640773,-401.05,0.00018878,2]
[378003471,1754664640782,-400.0,0.00018878,2]
[378003472,1754664640791,-485.87,0.00018878,2]
[378003473,1754664640800,-400.0,0.00018878,2]
[378003474,1754664640809,-400.0,0.00018878,2]
[378003475,1754664640819,-606.36,0.00018878,2]
[378003476,1754664640837,-400.0,0.00018878,2]
[378003477,1754664640847,-561.18,0.00018878,2]
[378003478,1754664640856,-402.67,0.00018878,2]
[378003479,1754664640865,-400.0,0.00018878,2]
[378003480,1754664640874,-400.0,0.00018878,2]
[378003481,1754664640883,-400.0,0.00018878,2]
[378003482,1754664640893,-400.0,0.00018878,2]
[378003483,1754664640902,-400.0,0.00018878,2]
[378003484,1754664640915,-400.0,0.00018878,2]
[378003485,1754664640928,-439.33,0.00018878,2]
[378003486,1754664640937,-400.0,0.00018878,2]
[378003487,1754664640948,-530.05,0.00018878,2]
[378003488,1754664640965,-400.0,0.00018878,2]
[378003489,1754664640974,-400.0,0.00018878,2]
[378003490,1754664640984,-400.0,0.00018878,2]
[378003491,1754664640994,-400.0,0.00018878,2]
[378003492,1754664641003,-400.0,0.00018878,2]
[378003493,1754664641012,-400.0,0.00018878,2]
[378003494,1754664641021,-400.0,0.00018878,2]
[378003495,1754664641033,-433.84807818,0.00018878,2]
[378003496,1754664641042,-400.0,0.00018878,2]
[378003497,1754664641052,-400.0,0.00018878,2]
[378003498,1754664641061,-400.0,0.00018878,2]
[378003499,1754664641073,-400.0,0.00018878,2]
[378003500,1754664641083,-400.0,0.00018878,2]
[378003501,1754664641092,-400.0,0.00018878,2]
[378003502,1754664641102,-400.0,0.00018878,2]
[378003503,1754664641111,-515.45,0.00018878,2]
[378003504,1754664641120,-642.15,0.00018878,2]
[378003505,1754664641129,-3729.61,0.00018878,2]
[378003506,1754664641139,-3784.35,0.00018878,2]
[378003507,1754664641148,-3112.17,0.00018878,2]
[378003508,1754664641157,-4087.2,0.00018878,2]
[378003509,1754664641167,-1281.39,0.00018878,2]
[378003510,1754664641176,-1470.83,0.00018878,2]
[378003511,1754664641185,-2482.56,0.00018878,2]
[378003512,1754664641194,-3135.26,0.00018878,2]
[378003513,1754664641203,-877.62,0.00018878,2]
[378003514,1754664641218,-918.42,0.00018878,2]
[378003515,1754664641227,-1212.36,0.00018878,2]
[378003516,1754664641236,-8908.58,0.00018878,2]
[378003517,1754664641246,-803.06,0.00018878,2]
[378003518,1754664641255,-653.9,0.00018878,2]
[378003519,1754664641265,-573.74,0.00018878,2]
[378003520,1754664641276,-5559.08,0.00018878,2]
[378003521,1754664641286,-962.66,0.00018878,2]
[378003522,1754664641295,-758.97081007,0.00018878,2]
[378003523,1754664641775,-2335.333,0.00018878,2]
[378003524,1754664641787,-712.91618993,0.00018878,2]
[378003525,1754664641796,-1311.94,0.00018878,2]
[378003526,1754664641805,-1378.02,0.00018878,2]
[378003527,1754664641815,-402.66,0.00018899,2]
[378003528,1754664641824,-227.13800804,0.00018899,2]
[378003529,1754664641833,-267.027,0.000189,2]
[378003530,1754664641842,-764.17,0.000189,2]
[378003531,1754664641851,-153.214,0.000189,2]
[378003532,1754664641860,-2456.27777075,0.000189,2]
[378003533,1754664641870,-170.62629434,0.000189,2]
[378003534,1754664641879,-206.88692928,0.000189,3]
[378003535,1754664641887,-709.10914239,0.000189,2]
[378003536,1754664641900,-748.02725244,0.000189,2]
[378003537,1754664641910,-451.15353998,0.000189,2]
[378003538,1754664641920,-898.15218,0.0001892,2]
[378003539,1754664641929,-192.20518643,0.00018928,2]
[378003540,1754664641939,-500.0,0.0001897,2]
[378003541,1754664641950,-26.57298236,0.0001897,2]
[378003542,1754664641963,-473.42701764,0.0001897,2]
[378003543,1754664641972,-803.25725921,0.0001897,2]
[378003544,1754664641981,-1000.0,0.0001897,2]
[378003545,1754664641992,-1000.0,0.0001897,2]
[378003546,1754664642002,-1000.0,0.0001897,2]
[378003547,1754664642012,-1000.0,0.0001897,2]
[378003548,1754664642021,-1006.94691386,0.0001897,2]
[378003549,1754664642030,-500.0,0.00018973,2]
[378003550,1754664642040,-252.34455499,0.0001899,2]
[378003551,1754664642049,-252.34455499,0.0001899,2]
[378003552,1754664642058,-1000.0,0.00018999,2]
[378003553,1754664642067,-869.48331162,0.00018999,2]
[378003554,1754664642293,-130.51668838,0.00018999,2]
[378003555,1754664642313,-1000.0,0.00018999,2]
[378003556,1754664642322,-2482.56,0.00018999,2]
[378003557,1754664642332,-2482.56,0.00018999,2]
[378003558,1754664642340,-2482.56,0.00018999,2]
[378003559,1754664642350,-2482.56,0.00018999,2]
[378003560,1754664642359,-2482.56,0.00018999,2]
[378003561,1754664642368,-2482.56,0.00018999,2]
[378003562,1754664642378,-2482.56,0.00018999,2]
[378003563,1754664642387,-2482.56,0.00018999,2]
[378003564,1754664642396,-2482.56,0.00018999,2]
[378003565,1754664642405,-2482.56,0.00018999,2]
[378003566,1754664642415,-2482.56,0.00018999,2]
[378003567,1754664642424,-2482.56,0.00018999,2]
[378003568,1754664642434,-2482.56,0.00018999,2]
[378003569,1754664642444,-2482.56,0.00018999,2]
[378003570,1754664642454,-2482.56,0.00018999,2]
[378003571,1754664642465,-2482.56,0.00018999,2]
[378003572,1754664642475,-425.55549363,0.00018999,2]
[378003573,1754664642487,-787.34156779,0.00018999,2]
[378003575,1754664642659,-500.0,0.00018752,2]
[378003577,1754664642670,-500.0,0.00018752,2]
[378003578,1754664642679,-1269.66293858,0.00018999,2]
[378003579,1754664642689,-1860.01569731,0.00018999,2]
[378003580,1754664642701,-622.54430269,0.00018999,2]
[378003581,1754664642711,-2482.56,0.00018999,2]
[378003582,1754664642720,-500.0,0.00018999,2]
[378003583,1754664642730,-500.0,0.00018999,2]
[378003584,1754664642739,-212.41104532,0.00018999,2]
[378003585,1754664642749,-500.0,0.00018999,2]
[378003586,1754664642760,-500.0,0.00018999,2]
[378003587,1754664642769,-500.0,0.00018999,2]
[378003588,1754664642779,-277.16,0.00018999,2]
[378003589,1754664642789,-35695.41798095,0.00019,2]
[378003590,1754664642800,-584.70806497,0.00019,2]
[378003602,1754664644099,-500.0,0.00018752,2]
[378003604,1754664644109,-500.0,0.00018752,2]
[378003606,1754664644119,-500.0,0.00018752,2]
[378003608,1754664644128,-496.2971953,0.00018752,2]
[378003610,1754664644138,-876.78,0.00018753,2]
[378003613,1754664644147,-400.0,0.00018753,2]
[378003615,1754664644157,-400.0,0.00018753,2]
[378003618,1754664644167,-518.25,0.00018754,2]
[378003621,1754664644176,-499.13,0.00018754,2]
[378003625,1754664644185,-527.05,0.00018755,2]
[378003628,1754664644195,-115854.65394291,0.00019,2]
[378003630,1754664644206,-395.64,0.00019,2]
[378003632,1754664644220,-1561.11895574,0.00019,2]
[378003644,1754664644338,-329.329004,0.00019,2]
[378003707,1754664645108,-150.62,0.00018112,2]
[378003709,1754664645118,-104.46932429,0.00018753,2]
[378003718,1754664645199,-295.53067571,0.00018753,2]
[378003720,1754664645208,-292.46932429,0.00018754,2]
[378003722,1754664645222,-129.13067571,0.00018754,2]
[378003724,1754664645232,-988.53,0.00018755,2]
[378003726,1754664645242,-62422.95719386,0.00019,2]
[378003729,1754664645251,-28362.72268271,0.00019,2]
[378003731,1754664645261,-45397.09795188,0.00019,2]
[378003738,1754664645329,-2964.27978987,0.00019,2]
[378003741,1754664645340,-324.7149346,0.00019,2]
[378003743,1754664645353,-2000.0,0.00019,2]
[378003746,1754664645373,-4440.41127773,0.00019,2]
[378003748,1754664645382,-1112799.38423722,0.00019,2]
[378003826,1754664646144,-5329.6408811,0.00019,2]
[378003828,1754664646156,-5183.35850735,0.00019,2]
[378003833,1754664646187,-3141.17279832,0.00019,2]
[378003932,1754664647120,-152.05,0.00018753,2]
[378003934,1754664647130,-400.0,0.00018753,2]
[378003936,1754664647139,-1767.84,0.00018754,2]
[378003938,1754664647148,-599.48,0.00018755,2]
[378003940,1754664647157,-37156.75899203,0.00019,2]
[378003943,1754664647173,-116700.0,0.00019,2]
[378003997,1754664647697,-692.93,0.00018754,2]
[378003999,1754664647709,-14734.31605023,0.00019,2]
[378004013,1754664647849,-3558.61316824,0.00019,2]
[378004017,1754664647875,-150.72,0.00018753,2]
[378004019,1754664647885,-769.06497405,0.00019,2]
[378004741,1754664749310,3994.55,0.00017901,2]
[378004742,1754664753748,698.78537465,0.00018,2]
[378004743,1754664802182,190.63,0.00017901,2]
[378004744,1754664879493,250.0,0.00017868,2]
[378004745,1754664955385,2022.06813883,0.00017856,2]
[378004746,1754664955407,3684.71186117,0.00017856,2]